bitfinex/quotes_BTCUSD_20220207
["timestamp","ask_amount","ask_price","bid_price","bid_amount"]
[1644212339345,0.00064222,42775.0,42769.0,0.058442]
[1644212339545,0.03900191,42775.0,42770.0,0.002]
[1644212339746,0.03964222,42775.0,42770.0,0.002]
[1644212340249,0.25544444,42775.0,42770.0,0.002]
[1644212340701,0.25480413,42775.0,42770.0,0.002]
[1644212340900,0.21580413,42775.0,42769.0,0.058442]
[1644212341102,0.21644444,42775.0,42769.0,0.058442]
[1644212341301,0.00064222,42775.0,42769.0,0.058442]
[1644212341501,0.00064222,42775.0,42770.0,0.32698]
[1644212341702,0.03764222,42775.0,42770.0,0.32698]
[1644212341901,0.03764222,42775.0,42770.0,0.05]
[1644212341902,0.03700191,42775.0,42770.0,0.05]
[1644212342302,0.03700191,42775.0,42769.0,0.060442]
[1644212342303,0.03764222,42775.0,42771.0,0.32698]
[1644212342605,0.03764222,42775.0,42763.0,0.5]
[1644212342606,0.3022634,42774.0,42763.0,0.5]
[1644212342808,0.3022634,42774.0,42762.0,0.00020719]
[1644212342809,0.8,42773.0,42762.0,0.00020719]
[1644212343006,0.04979,42771.0,42761.0,0.00070881]
[1644212343204,1.09326424,42770.0,42755.0,0.00020719]
[1644212343403,0.04761766,42768.0,42761.0,0.00070879]
[1644212343611,0.90505789,42767.0,42761.0,0.00070879]
[1644212343807,1.05505789,42767.0,42761.0,0.00070879]
[1644212344004,0.32698,42766.0,42761.0,0.00070879]
[1644212344445,0.24539388,42759.0,42754.0,0.00020719]
[1644212344645,0.4951,42766.0,42753.0,0.00230719]
[1644212344945,0.07892923,42756.0,42753.0,0.00230719]
[1644212345545,0.10092923,42756.0,42753.0,0.00230719]
[1644212346945,0.07892923,42756.0,42753.0,0.00230719]
[1644212347548,0.10292923,42756.0,42753.0,0.00230719]
[1644212348395,0.31898868,42756.0,42753.0,0.00230719]
[1644212348797,0.2679162,42755.0,42753.0,0.00230719]
[1644212348996,0.2679162,42755.0,42753.0,0.0021]
[1644212349197,0.26633406,42755.0,42753.0,0.0021]
[1644212349395,0.59225285,42755.0,42753.0,0.0021]
[1644212349596,0.34898,42755.0,42753.0,0.0021]
[1644212351099,0.32698,42755.0,42753.0,0.0021]
[1644212351498,0.56420047,42755.0,42753.0,0.0021]
[1644212351754,0.85230088,42755.0,42753.0,0.0021]
[1644212351950,0.26685094,42754.0,42753.0,0.0021]
[1644212352649,0.59383094,42754.0,42753.0,0.0021]
[1644212352849,0.26685094,42754.0,42753.0,0.0021]
[1644212353049,0.32698,42755.0,42753.0,0.0021]
[1644212353253,0.07892923,42756.0,42753.0,0.0021]
[1644212353448,0.07892923,42756.0,42753.0,0.00230719]
[1644212353649,0.34598,42755.0,42753.0,0.00230719]
[1644212353848,0.019,42755.0,42753.0,0.0021]
[1644212354251,0.34598,42755.0,42753.0,0.0021]
[1644212354849,0.32698,42755.0,42753.0,0.0021]
[1644212355353,0.23517311,42758.0,42753.0,0.0021]
[1644212355602,0.023,42755.0,42753.0,0.00230719]
[1644212355903,0.023,42755.0,42753.0,0.0021]
[1644212356402,0.32698,42754.0,42753.0,0.0021]
[1644212356600,0.06313027,42755.0,42753.0,0.0021]
[1644212356801,0.27332826,42757.0,42753.0,0.0021]
[1644212357004,0.327093,42756.0,42753.0,0.00230719]
[1644212357202,0.08584419,42755.0,42753.0,0.00230719]
[1644212357401,0.08584419,42755.0,42753.0,0.0021]
[1644212357602,0.327093,42754.0,42753.0,0.0021]
[1644212357802,0.3042706,42755.0,42753.0,0.0021]
[1644212358002,0.327093,42754.0,42753.0,0.0021]
[1644212358202,0.3042706,42755.0,42753.0,0.0021]
[1644212358404,0.326849,42754.0,42753.0,0.0021]
[1644212358602,0.3042706,42755.0,42753.0,0.0021]
[1644212358803,0.08584419,42755.0,42753.0,0.0021]
[1644212359643,0.09884419,42755.0,42753.0,0.0021]
[1644212360345,0.09884419,42755.0,42753.0,0.00202496]
[1644212360544,0.42593719,42755.0,42753.0,0.00202496]
[1644212360947,0.41293719,42755.0,42753.0,0.00202496]
[1644212361146,0.08584419,42755.0,42753.0,0.00202496]
[1644212361545,0.41293719,42755.0,42753.0,0.00202496]
[1644212361746,0.32685,42754.0,42753.0,0.00202496]
[1644212361952,0.10084419,42755.0,42753.0,0.00202496]
[1644212362147,0.326849,42754.0,42753.0,0.00202496]
[1644212362347,0.10084419,42755.0,42753.0,0.00202496]
[1644212362547,0.326849,42754.0,42753.0,0.00202496]
[1644212362748,0.10084419,42755.0,42753.0,0.00202496]
[1644212362993,0.41293719,42755.0,42753.0,0.00202496]
[1644212363795,0.43093719,42755.0,42753.0,0.00202496]
[1644212364195,0.018,42755.0,42753.0,0.00202496]
[1644212364995,0.2797949,42762.0,42753.0,0.00202496]
[1644212365195,0.08566356,42759.0,42753.0,0.00223215]
[1644212365795,0.10066356,42759.0,42753.0,0.00623215]
[1644212366197,0.10066356,42759.0,42754.0,0.00066084]
[1644212366395,0.10066356,42759.0,42754.0,0.00086803]
[1644212366396,0.015,42759.0,42754.0,0.00086803]
[1644212366758,0.015,42759.0,42758.0,0.05]
[1644212366947,0.65428378,42765.0,42755.0,0.10866919]
[1644212367145,0.3825,42765.0,42755.0,0.05866919]
[1644212367346,0.26556939,42765.0,42755.0,0.10866919]
[1644212367548,0.07018624,42759.0,42758.0,0.0006608]
[1644212367847,0.07018624,42759.0,42755.0,0.055]
[1644212368047,0.07018624,42759.0,42757.0,0.05]
[1644212368550,0.1338,42765.0,42757.0,0.05]
[1644212368551,0.021,42765.0,42758.0,0.0468]
[1644212368753,0.021,42765.0,42764.0,0.05]
[1644212368948,0.021,42765.0,42764.0,0.423893]
[1644212369347,0.021,42765.0,42764.0,0.573893]
[1644212369550,0.07512946,42769.0,42764.0,0.573893]
[1644212369751,0.07512946,42769.0,42768.0,0.05]
[1644212369950,0.07512946,42769.0,42768.0,0.373893]
[1644212370150,0.19242603,42775.0,42768.0,0.423893]
[1644212370498,0.19242603,42775.0,42768.0,0.1468]
[1644212370695,0.19242603,42775.0,42768.0,0.0968]
[1644212370895,0.19242603,42775.0,42768.0,0.0468]
[1644212371096,0.19242603,42775.0,42763.0,0.11688876]
[1644212371304,0.19242603,42775.0,42761.0,0.166893]
[1644212371305,0.34132982,42774.0,42762.0,0.05]
[1644212371499,0.24406773,42772.0,42758.0,0.10257227]
[1644212371699,0.61027377,42771.0,42756.0,0.05051596]
[1644212371900,0.2382943,42765.0,42756.0,0.00051596]
[1644212372099,0.21924215,42761.0,42752.0,0.0522]
[1644212372398,0.21924215,42761.0,42756.0,0.00070809]
[1644212372597,0.327093,42760.0,42756.0,0.00070809]
[1644212372797,0.21924215,42761.0,42756.0,0.00070809]
[1644212372997,0.0637446,42760.0,42756.0,0.00070809]
[1644212373199,0.0637446,42760.0,42753.0,0.00202496]
[1644212373399,0.0637446,42760.0,42756.0,0.00070807]
[1644212373803,0.0637446,42760.0,42759.0,0.05]
[1644212373804,0.0717446,42760.0,42759.0,0.05]
[1644212374251,0.0717446,42760.0,42757.0,0.05846]
[1644212374442,0.0717446,42760.0,42758.0,0.327093]
[1644212374843,0.0717446,42760.0,42759.0,0.327093]
[1644212375049,0.0717446,42760.0,42756.0,0.05070808]
[1644212375050,0.0637446,42760.0,42756.0,0.05070808]
[1644212375242,0.0637446,42760.0,42756.0,0.00070808]
[1644212375643,0.0697446,42760.0,42754.0,0.05]
[1644212375842,0.0697446,42760.0,42756.0,0.00070807]
[1644212376043,0.33168699,42760.0,42756.0,0.00070807]
[1644212376242,0.0697446,42760.0,42756.0,0.00070807]
[1644212376447,0.0697446,42760.0,42757.0,0.327093]
[1644212376642,0.0697446,42760.0,42757.0,0.377093]
[1644212376842,0.0697446,42760.0,42758.0,0.05]
[1644212377044,0.0637446,42760.0,42759.0,0.327093]
[1644212377244,0.0637446,42760.0,42759.0,0.377093]
[1644212377444,0.00064191,42764.0,42759.0,0.377093]
[1644212377645,0.00064191,42764.0,42763.0,0.05]
[1644212378099,0.31791866,42776.0,42763.0,0.05]
[1644212378298,0.31791866,42776.0,42766.0,0.05]
[1644212378500,0.31791866,42776.0,42758.0,0.1]
[1644212378501,0.0891035,42768.0,42763.0,0.05]
[1644212378703,0.0891035,42768.0,42761.0,0.327093]
[1644212378901,0.0891035,42768.0,42761.0,0.05]
[1644212379601,0.00064196,42767.0,42761.0,0.05]
[1644212379800,0.00064196,42767.0,42766.0,0.05]
[1644212380201,0.00064196,42767.0,42766.0,0.377093]
[1644212380400,0.003,42768.0,42766.0,0.377093]
[1644212380603,0.003,42768.0,42767.0,0.377093]
[1644212380801,0.003,42768.0,42767.0,0.327093]
[1644212381001,0.00051831,42769.0,42765.0,0.05845]
[1644212381203,0.22770097,42769.0,42765.0,0.10845]
[1644212381404,0.00051831,42769.0,42765.0,0.05]
[1644212381606,0.2661234,42774.0,42762.0,0.05]
[1644212381859,0.25000011,42767.0,42765.0,0.006]
[1644212382456,0.08254555,42766.0,42765.0,0.006]
[1644212383057,0.08254555,42766.0,42764.0,0.05]
[1644212383457,0.00051831,42768.0,42764.0,0.05]
[1644212383659,0.00051831,42768.0,42767.0,0.05]
[1644212383861,0.24500368,42773.0,42767.0,0.05]
[1644212384058,0.21662897,42774.0,42767.0,0.05]
[1644212384858,0.07986733,42769.0,42767.0,0.05]
[1644212385058,0.07986733,42769.0,42765.0,0.05]
[1644212385696,0.056,42769.0,42768.0,0.05]
[1644212385895,0.056,42769.0,42765.0,0.056]
[1644212386097,0.27021218,42768.0,42765.0,0.006]
[1644212386296,0.58782666,42767.0,42765.0,0.006]
[1644212386501,0.59480081,42766.0,42765.0,0.006]
[1644212386898,0.79748253,42766.0,42765.0,0.006]
[1644212387195,0.41459472,42765.0,42761.0,0.0506767]
[1644212387396,0.41459472,42765.0,42761.0,0.0006767]
[1644212387797,0.44359472,42765.0,42761.0,0.00067669]
[1644212388798,0.44359472,42765.0,42756.0,0.05]
[1644212389000,0.07522558,42757.0,42756.0,0.05]
[1644212389251,0.07522558,42757.0,42756.0,0.377049]
[1644212389643,0.22574175,42765.0,42756.0,0.377049]
[1644212389950,0.00053337,42770.0,42764.0,0.05]
[1644212390144,0.30370066,42775.0,42756.0,0.23637997]
[1644212390145,1.91e-06,42775.0,42769.0,0.05]
[1644212390350,1.91e-06,42775.0,42769.0,0.0968]
[1644212390544,0.00053334,42770.0,42769.0,0.1468]
[1644212391348,0.07172668,42771.0,42769.0,0.1468]
[1644212391749,0.019,42770.0,42769.0,0.1528]
[1644212392994,0.07172668,42771.0,42769.0,0.1468]
[1644212393598,0.00053278,42772.0,42769.0,0.1468]
[1644212393800,1.91e-06,42775.0,42769.0,0.1468]
[1644212393801,0.024,42771.0,42769.0,0.2008]
[1644212394099,0.024,42771.0,42770.0,0.435488]
[1644212394297,0.024,42771.0,42770.0,0.482288]
[1644212394899,0.024,42771.0,42770.0,0.532288]
[1644212395198,0.00053278,42773.0,42770.0,0.632288]
[1644212395398,0.00053278,42773.0,42772.0,0.377049]
[1644212395798,0.00053278,42773.0,42772.0,0.527049]
[1644212396199,0.07816897,42774.0,42772.0,0.427049]
[1644212396397,0.00053478,42775.0,42773.0,0.377049]
[1644212397254,1.91e-06,42775.0,42773.0,0.377049]
[1644212397453,0.23685669,42774.0,42773.0,0.377049]
[1644212397654,1.91e-06,42775.0,42767.0,0.0968]
[1644212397854,0.02300191,42775.0,42773.0,0.001]
[1644212398051,0.02300191,42775.0,42773.0,0.051]
[1644212399049,0.02300191,42775.0,42773.0,0.05]
[1644212399050,1.91e-06,42775.0,42773.0,0.05]
[1644212399851,0.00200191,42775.0,42773.0,0.065]
[1644212400900,0.00200191,42775.0,42773.0,0.015]
[1644212400901,0.22840577,42774.0,42773.0,0.015]
[1644212401101,0.22840577,42774.0,42768.0,0.05]
[1644212401502,0.22840577,42774.0,42765.0,0.05]
[1644212401901,0.22956876,42771.0,42765.0,0.05]
[1644212402101,0.34687451,42770.0,42760.0,0.05]
[1644212402307,0.06446088,42763.0,42761.0,0.00067569]
[1644212402501,0.06446088,42763.0,42762.0,0.327049]
[1644212402700,0.28269551,42770.0,42762.0,0.327049]
[1644212402902,0.28269551,42770.0,42763.0,0.05]
[1644212403099,0.28269551,42770.0,42761.0,0.00067569]
[1644212403300,0.28269551,42770.0,42759.0,0.108456]
[1644212403500,0.28322834,42770.0,42761.0,0.00067568]
[1644212403902,0.02153283,42770.0,42769.0,0.05]
[1644212404102,0.02153283,42770.0,42765.0,0.058451]
[1644212404753,0.021,42770.0,42766.0,0.327049]
[1644212404954,0.021,42770.0,42766.0,0.377049]
[1644212405152,0.0790539,42771.0,42766.0,0.05]
[1644212405352,0.0790539,42771.0,42765.0,0.108451]
[1644212405551,0.0790539,42771.0,42765.0,0.058451]
[1644212405754,0.0790539,42771.0,42766.0,0.008]
[1644212405755,0.0940539,42771.0,42766.0,0.008]
[1644212406055,0.00053285,42770.0,42766.0,0.008]
[1644212406652,0.00053285,42770.0,42766.0,0.058]
[1644212406854,0.0940539,42771.0,42766.0,0.058]
[1644212406855,0.015,42771.0,42769.0,0.05]
[1644212407055,1.91e-06,42775.0,42770.0,0.327049]
[1644212407254,1.91e-06,42775.0,42771.0,0.0468]
[1644212407456,1.91e-06,42775.0,42774.0,0.05]
[1644212407652,1.91e-06,42775.0,42774.0,0.0468]
[1644212407852,0.01500191,42775.0,42774.0,0.0468]
[1644212408700,0.01500191,42775.0,42771.0,0.012]
[1644212409100,1.91e-06,42775.0,42769.0,0.05]
[1644212409401,0.00016315,42775.0,42769.0,0.05]
[1644212409600,0.00016315,42775.0,42767.0,0.327049]
[1644212409798,0.04316315,42775.0,42769.0,0.002]
[1644212410001,0.04316315,42775.0,42771.0,0.05]
[1644212410500,0.04300191,42775.0,42771.0,0.05]
[1644212410701,0.04316294,42775.0,42774.0,0.05]
[1644212411100,0.00016294,42775.0,42774.0,0.05]
[1644212411301,8.889e-05,42775.0,42774.0,0.05]
[1644212411501,8.889e-05,42775.0,42774.0,0.327049]
[1644212411759,0.07325301,42781.0,42774.0,0.327049]
[1644212411954,0.07325301,42781.0,42774.0,0.02]
[1644212412153,0.00028476,42782.0,42774.0,0.02]
[1644212412558,0.00028476,42783.0,42778.0,0.05]
[1644212412755,0.00028476,42781.0,42779.0,0.18345179]
[1644212412957,0.9848,42794.0,42779.0,0.423849]
[1644212412958,0.00028476,42782.0,42779.0,0.423849]
[1644212413155,0.08085401,42786.0,42779.0,0.423849]
[1644212413356,0.08085401,42786.0,42779.0,0.523849]
[1644212413557,0.00028476,42785.0,42779.0,0.523849]
[1644212413754,0.00028476,42785.0,42779.0,0.423849]
[1644212413954,0.137,42780.0,42779.0,0.434849]
[1644212414254,0.137,42780.0,42779.0,0.484849]
[1644212414454,0.137,42780.0,42779.0,0.434849]
[1644212415058,0.1,42780.0,42779.0,0.423849]
[1644212415502,0.1,42780.0,42779.0,0.427149]
[1644212415902,0.1,42780.0,42779.0,0.443149]
[1644212416805,0.1,42780.0,42779.0,0.493149]
[1644212417005,0.1,42780.0,42779.0,0.477149]
[1644212417403,0.1,42780.0,42779.0,0.427149]
[1644212417804,0.1,42780.0,42779.0,0.396349]
[1644212419009,0.1,42780.0,42779.0,0.0225]
[1644212419010,0.38095408,42780.0,42779.0,0.0225]
[1644212419255,0.38095408,42780.0,42779.0,0.0035]
[1644212419256,0.9114781,42780.0,42779.0,0.0035]
[1644212419848,0.9264781,42780.0,42779.0,0.0045]
[1644212420449,1.01106168,42780.0,42779.0,0.0045]
[1644212421049,1.01106168,42780.0,42779.0,0.0035]
[1644212421050,0.99606168,42780.0,42779.0,0.0035]
[1644212421849,1.01506168,42780.0,42779.0,0.0035]
[1644212422749,0.7341076,42780.0,42779.0,0.0035]
[1644212423302,0.7151076,42780.0,42779.0,0.0035]
[1644212423704,0.51143958,42780.0,42779.0,0.0035]
[1644212423903,0.21258358,42780.0,42779.0,0.0035]
[1644212425204,0.18458358,42780.0,42779.0,0.0035]
[1644212425402,0.1,42780.0,42779.0,0.0035]
[1644212425803,0.119,42780.0,42779.0,0.0035]
[1644212426005,0.119,42780.0,42779.0,0.0535]
[1644212426409,0.119,42780.0,42779.0,0.28138593]
[1644212426608,0.119,42780.0,42779.0,0.60843493]
[1644212426851,0.119,42780.0,42779.0,0.65843493]
[1644212427352,0.119,42780.0,42779.0,0.69489758]
[1644212427749,0.1,42780.0,42779.0,0.69489758]
[1644212427949,0.1,42780.0,42779.0,0.71089758]
[1644212428351,0.1,42780.0,42779.0,0.396549]
[1644212428751,0.1,42780.0,42779.0,0.446549]
[1644212429151,0.1,42780.0,42779.0,0.430549]
[1644212429353,0.1,42780.0,42779.0,0.380549]
[1644212429552,0.1,42780.0,42779.0,0.330549]
[1644212429754,0.1,42780.0,42779.0,0.0035]
[1644212429954,0.1,42780.0,42779.0,0.0165]
[1644212431002,0.1,42780.0,42779.0,0.0665]
[1644212431899,0.1,42780.0,42779.0,0.0585]
[1644212432098,0.1,42780.0,42779.0,0.0085]
[1644212433100,0.1,42780.0,42779.0,0.0035]
[1644212435750,0.1,42780.0,42779.0,0.0535]
[1644212436550,0.1,42780.0,42779.0,0.13574226]
[1644212436551,0.09992824,42780.0,42779.0,0.13574226]
[1644212436747,0.09992824,42780.0,42779.0,0.51279126]
[1644212436948,0.09992824,42780.0,42779.0,0.430549]
[1644212438001,0.09992824,42780.0,42779.0,0.441549]
[1644212438202,0.09992824,42780.0,42779.0,0.391549]
[1644212439103,0.09992824,42780.0,42779.0,0.380549]
[1644212439303,0.09992824,42780.0,42779.0,0.0535]
[1644212439703,0.09992824,42780.0,42779.0,0.0035]
[1644212439903,0.09992824,42780.0,42779.0,0.0135]
[1644212441007,0.36723382,42780.0,42779.0,0.0135]
[1644212441208,0.36723382,42780.0,42779.0,0.0035]
[1644212441849,0.39023382,42780.0,42779.0,0.0035]
[1644212442851,0.71708982,42780.0,42779.0,0.0035]
[1644212443251,0.69408982,42780.0,42779.0,0.0035]
[1644212443656,0.09992824,42780.0,42779.0,0.0035]
[1644212443859,0.11792824,42780.0,42779.0,0.0035]
[1644212445051,0.11792824,42780.0,42779.0,0.380549]
[1644212445252,0.09992824,42780.0,42779.0,0.430549]
[1644212445900,0.09992824,42780.0,42779.0,0.437549]
[1644212447400,0.09992824,42780.0,42779.0,0.430549]
[1644212448000,0.09992824,42780.0,42779.0,0.438549]
[1644212449257,0.09992824,42780.0,42779.0,0.430549]
[1644212450048,0.09992824,42780.0,42779.0,0.78144882]
[1644212451748,0.09992824,42780.0,42779.0,0.77344882]
[1644212451948,0.09992824,42780.0,42779.0,0.79444882]
[1644212452750,0.09992824,42780.0,42779.0,0.94444882]
[1644212453011,0.09992824,42780.0,42779.0,1.00286482]
[1644212453309,0.09992824,42780.0,42779.0,0.98186482]
[1644212453909,0.09992824,42780.0,42779.0,1.01286482]
[1644212454710,0.09992824,42780.0,42779.0,0.95444882]
[1644212455111,0.09992824,42780.0,42779.0,0.92344882]
[1644212455312,0.09992824,42780.0,42779.0,0.72344882]
[1644212455512,0.09992824,42780.0,42779.0,0.377349]
[1644212455712,0.09992824,42780.0,42779.0,0.66912521]
[1644212456013,0.09992824,42780.0,42779.0,0.74112521]
[1644212456311,0.09992824,42780.0,42779.0,0.69102371]
[1644212456761,0.09992824,42780.0,42779.0,0.74102371]
[1644212456955,0.09992824,42780.0,42779.0,0.94102371]
[1644212457155,0.09992824,42780.0,42779.0,0.91902371]
[1644212457954,0.09992824,42780.0,42779.0,0.94302371]
[1644212458155,0.08830769,42780.0,42779.0,0.94302371]
[1644212458355,0.08830769,42780.0,42779.0,1.00144071]
[1644212459157,0.08830769,42780.0,42779.0,0.97744071]
[1644212460057,0.08830769,42780.0,42779.0,1.00644071]
[1644212460701,0.0288077,42780.0,42779.0,1.00644071]
[1644212461303,0.0288077,42780.0,42779.0,0.97744071]
[1644212461905,0.0288077,42780.0,42779.0,1.00444071]
[1644212462103,0.00489382,42780.0,42779.0,1.00444071]
[1644212462304,0.3631,42796.0,42781.0,0.75]
[1644212462504,0.3631,42796.0,42794.0,0.05]
[1644212462703,0.08870529,42798.0,42794.0,0.05]
[1644212462902,0.08870529,42798.0,42793.0,0.05841]
[1644212463802,0.00064034,42798.0,42794.0,0.05]
[1644212464002,0.25819516,42798.0,42792.0,0.0968]
[1644212464260,0.25819516,42798.0,42790.0,0.1]
[1644212464456,0.25819516,42798.0,42790.0,0.05]
[1644212464654,0.25755482,42798.0,42790.0,0.05]
[1644212464852,0.25755482,42798.0,42789.0,0.2]
[1644212465052,0.00064034,42796.0,42789.0,0.05]
[1644212465355,0.00064034,42796.0,42782.0,0.05]
[1644212465356,0.23942069,42788.0,42782.0,0.05]
[1644212465553,0.23942069,42788.0,42779.0,0.0033985]
[1644212465554,0.326856,42786.0,42779.0,0.0033985]
[1644212465754,0.28906865,42787.0,42779.0,0.0033985]
[1644212465951,0.28906865,42787.0,42782.0,0.004]
[1644212466153,0.027,42788.0,42782.0,0.004]
[1644212466353,0.0789901,42784.0,42782.0,0.004]
[1644212466957,0.22865211,42783.0,42782.0,0.004]
[1644212467160,0.22865211,42783.0,42779.0,0.0033985]
[1644212467165,0.82194673,42783.0,42779.0,0.0033985]
[1644212467357,0.326856,42782.0,42779.0,0.0033985]
[1644212468006,0.338856,42782.0,42779.0,0.0033985]
[1644212469306,0.326856,42782.0,42779.0,0.0033985]
[1644212469905,0.27042828,42782.0,42779.0,0.0033985]
[1644212471408,0.25842828,42782.0,42779.0,0.0033985]
[1644212472054,0.27742828,42782.0,42779.0,0.0033985]
[1644212473353,0.25842828,42782.0,42779.0,0.0033985]
[1644212473555,0.22929245,42783.0,42779.0,0.0033985]
[1644212473955,0.276444,42782.0,42779.0,0.0033985]
[1644212475357,0.258444,42782.0,42779.0,0.0033985]
[1644212475805,0.26850839,42781.0,42779.0,0.0033985]
[1644212476406,0.014,42782.0,42779.0,0.0033985]
[1644212477208,0.22929245,42783.0,42779.0,0.0033985]
[1644212477406,0.258444,42782.0,42779.0,0.0033985]
[1644212477807,0.22957637,42783.0,42779.0,0.0033985]
[1644212478007,0.012,42782.0,42779.0,0.0033985]
[1644212479262,0.22893603,42783.0,42779.0,0.0033985]
[1644212479453,0.22957637,42783.0,42779.0,0.0033985]
[1644212479653,0.258444,42782.0,42779.0,0.0033985]
[1644212480256,0.51190715,42783.0,42779.0,0.0033985]
[1644212481155,0.22957637,42783.0,42779.0,0.0033985]
[1644212481359,0.22957637,42783.0,42773.0,0.02451369]
[1644212481360,0.20221711,42774.0,42773.0,0.02451369]
[1644212481558,0.00092426,42783.0,42773.0,0.35146569]
[1644212481559,0.12158392,42783.0,42773.0,0.35146569]
[1644212481756,0.12222426,42783.0,42773.0,0.07451369]
[1644212481955,0.12222426,42783.0,42773.0,0.18551369]
[1644212482156,0.12222426,42783.0,42773.0,0.13551369]
[1644212482364,0.12222426,42783.0,42773.0,0.0413]
[1644212482365,0.29151893,42774.0,42773.0,0.0413]
[1644212482558,0.75,42773.0,42761.0,0.00065657]
[1644212482758,0.75,42773.0,42758.0,0.00062408]
[1644212482759,0.258444,42772.0,42758.0,0.00062408]
[1644212483008,0.30890525,42771.0,42758.0,0.00062408]
[1644212483207,0.30890525,42771.0,42761.0,0.00065645]
[1644212483407,0.21529856,42767.0,42761.0,0.00065645]
[1644212483610,0.35093753,42766.0,42761.0,0.00065645]
[1644212483808,0.54752174,42766.0,42761.0,0.00065645]
[1644212484008,0.54752174,42766.0,42759.0,0.00020545]
[1644212484809,0.28161265,42766.0,42759.0,0.00020545]
[1644212485311,0.08502844,42766.0,42759.0,0.00020545]
[1644212485610,0.08502844,42766.0,42761.0,0.326952]
[1644212486009,0.10202844,42766.0,42761.0,0.326952]
[1644212486209,0.10202844,42766.0,42759.0,0.00020545]
[1644212486611,0.36850727,42766.0,42761.0,0.00066811]
[1644212486860,0.10202844,42766.0,42761.0,0.00066811]
[1644212487260,0.08502844,42766.0,42761.0,0.00066811]
[1644212487458,0.08502844,42766.0,42759.0,0.00020545]
[1644212487459,0.35693451,42766.0,42759.0,0.00020545]
[1644212487662,0.08502844,42766.0,42761.0,0.00066811]
[1644212487861,0.35253255,42766.0,42761.0,0.00066811]
[1644212488062,0.10202844,42766.0,42761.0,0.00066811]
[1644212488264,0.017,42766.0,42763.0,0.05]
[1644212488463,0.017,42766.0,42764.0,0.326952]
[1644212489262,0.37419375,42772.0,42764.0,0.326952]
[1644212489462,0.0890881,42770.0,42763.0,0.05]
[1644212489963,0.1070881,42770.0,42763.0,0.05]
[1644212491510,0.0890881,42770.0,42763.0,0.05]
[1644212492108,0.0890881,42770.0,42766.0,0.00046]
[1644212492109,0.018,42770.0,42766.0,0.00046]
[1644212492314,0.018,42770.0,42767.0,0.376952]
[1644212492513,0.018,42770.0,42768.0,0.30939218]
[1644212492716,0.018,42770.0,42769.0,0.326952]
[1644212492912,0.018,42770.0,42769.0,0.7125894]
[1644212493112,0.018,42770.0,42769.0,1.07734393]
[1644212493313,0.00053173,42774.0,42769.0,1.07734393]
[1644212493515,0.00053173,42774.0,42773.0,0.05]
[1644212493812,0.00053178,42774.0,42773.0,0.1]
[1644212494012,0.07853178,42774.0,42773.0,0.1]
[1644212494652,0.07853178,42774.0,42773.0,0.05]
[1644212494855,0.078,42774.0,42769.0,0.1968]
[1644212495056,0.078,42774.0,42769.0,0.1468]
[1644212495357,0.08510447,42771.0,42770.0,0.326952]
[1644212496154,0.034,42771.0,42770.0,0.333952]
[1644212497255,0.0794254,42778.0,42770.0,0.326952]
[1644212497455,0.00053633,42774.0,42769.0,0.26367595]
[1644212497655,0.00053633,42774.0,42771.0,0.326952]
[1644212498102,0.05753633,42774.0,42771.0,0.326952]
[1644212498503,0.057,42774.0,42769.0,0.26467595]
[1644212498905,0.057,42774.0,42769.0,0.1478]
[1644212499305,0.057,42774.0,42770.0,0.058439]
[1644212499504,0.057,42774.0,42771.0,0.326952]
[1644212499905,0.00053635,42774.0,42771.0,0.05]
[1644212500105,0.07653635,42774.0,42771.0,0.05]
[1644212500305,0.07653635,42774.0,42769.0,0.1968]
[1644212500508,0.07653635,42774.0,42769.0,0.1468]
[1644212500906,0.076,42774.0,42769.0,0.1468]
[1644212501106,0.07653555,42774.0,42770.0,0.05]
[1644212501307,0.00053555,42774.0,42770.0,0.05]
[1644212502153,0.02,42774.0,42770.0,0.055]
[1644212502353,0.02053555,42774.0,42770.0,0.055]
[1644212503058,0.02053555,42774.0,42773.0,0.05]
[1644212503255,0.27663525,42781.0,42773.0,0.05]
[1644212503452,0.27663525,42781.0,42771.0,0.05]
[1644212503453,0.00053555,42774.0,42771.0,0.05]
[1644212503653,0.00053555,42774.0,42772.0,0.326952]
[1644212504053,0.03353555,42774.0,42772.0,0.326952]
[1644212504353,0.033,42774.0,42771.0,0.053]
[1644212505154,0.033,42774.0,42772.0,0.326998]
[1644212505353,0.0005356,42775.0,42772.0,0.326998]
[1644212505615,0.27663525,42781.0,42771.0,0.05]
[1644212505912,0.0005356,42776.0,42771.0,0.05]
[1644212506211,0.008,42775.0,42772.0,0.012]
[1644212506613,0.008,42775.0,42774.0,0.05]
[1644212506814,0.008,42775.0,42774.0,0.85530455]
[1644212507011,0.008,42775.0,42774.0,0.90530455]
[1644212507213,0.008,42775.0,42774.0,1.00530455]
[1644212507413,0.0005356,42776.0,42774.0,0.59831169]
[1644212507613,0.0005356,42776.0,42775.0,0.326998]
[1644212507812,0.06854212,42776.0,42775.0,0.523798]
[1644212508013,0.06800652,42776.0,42775.0,0.390798]
[1644212508218,0.34148575,42776.0,42775.0,0.017]
[1644212508716,0.0005356,42778.0,42775.0,0.067]
[1644212508914,0.0005356,42778.0,42777.0,0.05]
[1644212509362,0.00028392,42784.0,42777.0,0.05]
[1644212509559,0.1155,42788.0,42777.0,0.05]
[1644212509560,0.0005356,42780.0,42777.0,0.05]
[1644212509758,0.0005356,42780.0,42778.0,0.326998]
[1644212510158,0.0685356,42780.0,42778.0,0.326998]
[1644212510558,0.068,42780.0,42778.0,0.326998]
[1644212510761,0.068,42780.0,42778.0,0.376998]
[1644212510958,0.068,42780.0,42779.0,0.373798]
[1644212511361,0.0005356,42781.0,42779.0,0.373798]
[1644212511759,0.00028392,42783.0,42779.0,0.373798]
[1644212511959,0.00053659,42782.0,42779.0,0.373798]
[1644212512159,0.00053659,42782.0,42779.0,0.379798]
[1644212513006,0.00028392,42786.0,42781.0,0.05]
[1644212513204,0.07925361,42787.0,42781.0,0.05]
[1644212513205,0.00053659,42783.0,42781.0,0.05]